bitfinex/quotes_ETHUSD_20260207
["timestamp","ask_amount","ask_price","bid_price","bid_amount"]
[1770438541849,0.001,2099.3,2097.9,4.82430293]
[1770438542421,0.04623434,2099.2,2097.9,4.82430293]
[1770438542641,0.04623434,2099.2,2098.0,1.37117747]
[1770438543153,0.04623434,2098.9,2097.8,0.1024]
[1770438543330,4.80882673,2099.2,2097.8,0.1024]
[1770438543832,4.80882673,2099.2,2097.9,1.19166785]
[1770438544029,0.04723434,2099.3,2097.9,1.19166785]
[1770438544346,0.04723434,2099.3,2098.2,0.0011]
[1770438544543,0.001,2099.3,2098.2,0.0011]
[1770438544849,0.04623434,2099.2,2098.2,0.0011]
[1770438545053,0.65092967,2099.2,2098.2,0.0011]
[1770438546331,0.65092967,2099.2,2098.2,0.04875989]
[1770438546531,4.4535152,2099.1,2098.2,0.0011]
[1770438546837,0.04623434,2098.9,2098.2,0.0011]
[1770438547357,4.49974954,2098.9,2098.2,0.0011]
[1770438547661,4.90349015,2098.8,2098.2,0.0011]
[1770438547956,6.29538151,2099.2,2098.2,0.0011]
[1770438548156,5.69086545,2098.9,2098.2,0.0011]
[1770438548461,4.4535152,2098.8,2098.2,0.0011]
[1770438550248,0.04623434,2098.9,2098.2,0.0011]
[1770438551674,4.31145764,2098.9,2098.2,0.0011]
[1770438551859,0.55025308,2098.8,2098.2,0.0011]
[1770438552450,0.04623434,2099.1,2098.2,0.0011]
[1770438552649,0.60469533,2099.2,2098.2,0.0011]
[1770438552968,0.04623434,2099.1,2098.2,0.0011]
[1770438553339,0.04623434,2098.8,2098.2,0.0011]
[1770438553664,4.31145764,2099.1,2098.2,0.0011]
[1770438553853,4.31145764,2098.8,2098.2,0.0011]
[1770438554374,0.61070938,2099.0,2098.2,0.0011]
[1770438554765,4.87593268,2099.0,2098.2,0.0011]
[1770438555675,0.04623434,2098.8,2098.2,0.0011]
[1770438556189,0.04623434,2098.9,2098.2,0.0011]
[1770438556365,0.04623434,2098.9,2098.0,0.0011]
[1770438556366,0.04623434,2098.3,2098.0,0.0011]
[1770438556564,4.31145764,2098.3,2098.0,0.0011]
[1770438556765,4.2652233,2098.3,2098.0,0.0011]
[1770438557096,4.31145764,2098.2,2098.0,0.0011]
[1770438557378,0.04623434,2098.1,2098.0,0.0011]
[1770438557544,4.6926034,2098.2,2098.1,0.0011]
[1770438558371,5.88410087,2098.2,2098.1,0.0011]
[1770438558572,5.93033521,2098.2,2098.1,0.0011]
[1770438558792,4.2652233,2098.1,2097.7,0.0011]
[1770438558983,0.04623434,2097.9,2097.7,0.0022]
[1770438559784,0.04623434,2097.9,2097.7,0.0011]
[1770438560555,4.2652233,2097.8,2097.5,0.0011]
[1770438561777,0.04623434,2098.5,2097.5,0.0011]
[1770438561981,0.04623434,2098.2,2097.6,0.0011]
[1770438562159,0.04623434,2098.5,2097.6,0.0011]
[1770438562489,1.23761717,2098.5,2097.6,0.0011]
[1770438562654,4.31145764,2098.8,2097.6,0.0011]
[1770438562655,0.04623434,2098.7,2097.6,0.0011]
[1770438562855,0.04623434,2098.7,2097.6,0.04877125]
[1770438563054,0.04623434,2098.4,2097.6,0.04877125]
[1770438563257,0.04623434,2098.7,2097.6,0.0011]
[1770438563447,0.04623434,2098.4,2097.6,0.0011]
[1770438564460,0.04623434,2098.4,2097.6,1.19293829]
[1770438564794,4.31145764,2098.6,2097.7,0.6009065]
[1770438565002,4.31145764,2098.6,2097.8,0.0011]
[1770438565167,0.04623434,2098.3,2097.7,0.0011]
[1770438565497,0.04623434,2098.2,2097.7,0.0011]
[1770438565661,4.31145764,2098.6,2097.7,0.0011]
[1770438566061,0.04623434,2098.3,2097.7,0.0011]
[1770438567561,1.23767596,2098.3,2097.7,0.0011]
[1770438567892,0.04623434,2098.2,2097.7,0.0011]
[1770438569270,4.31145764,2098.2,2097.5,0.0011]
[1770438569591,4.31145764,2098.2,2097.7,0.0011]
[1770438570092,4.2652233,2098.2,2097.8,0.0011]
[1770438570297,4.81561152,2098.2,2097.8,0.0011]
[1770438571066,6.00712216,2098.2,2097.8,0.0011]
[1770438571289,0.04623434,2098.0,2097.7,0.0011]
[1770438571602,0.04623434,2098.0,2097.7,0.0022]
[1770438572158,4.2652233,2098.1,2097.7,0.0011]
[1770438572381,4.2652233,2098.1,2097.5,0.0011]
[1770438572382,0.04623434,2097.9,2097.5,0.0011]
[1770438572691,4.31145764,2097.9,2097.5,0.0022]
[1770438572879,0.04623434,2097.9,2097.5,0.0022]
[1770438574167,1.19159508,2098.1,2097.5,0.0022]
[1770438574379,1.74191981,2098.2,2097.5,0.0022]
[1770438574589,0.04623434,2098.0,2097.5,0.0022]
[1770438575789,0.04623434,2097.7,2097.5,0.0022]
[1770438575962,1.23788922,2098.0,2097.5,0.0011]
[1770438576160,0.04623434,2098.0,2097.5,0.0022]
[1770438576364,1.08192842,2098.1,2097.5,0.0022]
[1770438576564,0.04623434,2097.9,2097.5,0.0022]
[1770438576790,2.27348305,2098.1,2097.5,0.0022]
[1770438576991,0.04623434,2097.9,2097.5,0.0022]
[1770438577390,0.04623434,2097.9,2097.5,0.0011]
[1770438577391,0.04623434,2097.6,2097.5,0.0011]
[1770438577591,0.04623434,2097.9,2097.5,0.0022]
[1770438577998,0.75484197,2097.9,2097.5,0.0022]
[1770438578172,1.94652152,2097.9,2097.5,0.0022]
[1770438578377,2.27352446,2098.1,2097.5,0.0022]
[1770438578676,0.04623434,2097.9,2097.5,0.0022]
[1770438578872,1.08192842,2098.1,2097.5,0.0022]
[1770438579079,0.04623434,2098.6,2097.5,0.0022]
[1770438579080,1.68333367,2098.9,2097.7,4.06108984]
[1770438579279,0.001,2099.0,2097.9,9.75256404]
[1770438579802,0.001,2099.0,2098.0,1.19161105]
[1770438580568,0.04623434,2098.9,2098.0,1.19161105]
[1770438580885,0.001,2099.0,2098.0,1.19161105]
[1770438581091,0.04623434,2098.9,2098.0,1.19161105]
[1770438581274,0.04623434,2098.9,2098.0,2.264061]
[1770438582207,0.04623434,2098.6,2097.9,1.19164035]
[1770438582371,0.04623434,2098.9,2098.0,1.19160501]
[1770438582571,0.04623434,2098.6,2098.0,1.19160501]
[1770438582901,0.04623434,2098.6,2097.7,0.0011]
[1770438583270,0.04623434,2098.5,2097.8,1.19169801]
[1770438583480,0.04623434,2098.5,2097.7,0.0011]
[1770438583481,0.45909358,2098.5,2097.7,0.0011]
[1770438583693,0.04623434,2098.5,2097.7,1.192837]
[1770438583894,1.19138391,2098.4,2097.7,0.0011]
[1770438584401,4.12859237,2098.5,2097.7,0.0011]
[1770438584574,5.31993903,2098.5,2097.7,0.0011]
[1770438584776,4.12859237,2098.2,2097.7,0.0011]
[1770438584989,0.04623434,2097.9,2097.7,0.0011]
[1770438585797,0.41285924,2098.1,2097.5,0.0011]
[1770438586005,1.60446529,2098.1,2097.6,0.0012]
[1770438586201,0.41285924,2098.1,2097.6,0.0012]
[1770438586374,1.23757805,2098.5,2097.6,0.0012]
[1770438586897,1.23756748,2098.5,2097.6,0.0012]
[1770438587095,0.04623434,2098.5,2097.6,0.0012]
[1770438587408,1.23757722,2098.5,2097.6,0.0012]
[1770438587706,1.83785657,2098.5,2097.6,0.0012]
[1770438587912,1.23763122,2098.4,2097.6,0.0012]
[1770438588119,1.23762251,2098.4,2097.6,0.0012]
[1770438588315,0.04623434,2098.4,2097.6,0.0012]
[1770438588608,1.23762805,2098.4,2097.6,0.0012]
[1770438588778,0.7065588,2098.4,2097.6,0.0012]
[1770438589096,1.89795389,2098.4,2097.6,0.0012]
[1770438589307,0.04623434,2098.1,2097.6,0.0012]
[1770438590302,1.23781473,2098.1,2097.6,0.0012]
[1770438590670,0.7065588,2098.4,2097.6,0.0012]
[1770438590873,0.53891962,2098.3,2097.6,0.0012]
[1770438591094,1.23762818,2098.4,2097.6,0.0012]
[1770438591308,1.23762818,2098.4,2097.5,0.0011]
[1770438591500,0.04623434,2098.1,2097.6,0.0012]
[1770438591689,1.23762818,2098.4,2097.6,0.0012]
[1770438592708,5.31998621,2098.4,2097.6,0.0012]
[1770438592886,5.31998621,2098.4,2097.7,0.0011]
[1770438593088,1.00853086,2098.3,2097.7,0.0011]
[1770438593303,0.001,2098.2,2097.7,0.0011]
[1770438593614,1.2373746,2098.9,2097.8,0.0012]
[1770438593911,0.04623434,2098.6,2097.8,0.0012]
[1770438594409,1.2373746,2098.9,2097.8,0.0012]
[1770438594580,2.2458879,2098.9,2097.8,0.0012]
[1770438594905,2.24585871,2098.9,2097.8,0.0012]
[1770438595405,1.0085133,2098.9,2097.8,0.0012]
[1770438595589,0.04623434,2098.6,2097.8,0.0012]
[1770438596106,0.04723434,2099.0,2097.8,13.84292918]
[1770438596315,0.001,2099.0,2097.8,4.06228984]
[1770438596481,0.001,2099.0,2098.1,1.19155426]
[1770438596903,0.001,2099.0,2098.2,0.0012]
[1770438597204,0.04723434,2099.3,2098.2,1.00320611]
[1770438597408,1.23811205,2099.3,2098.2,1.00320611]
[1770438597604,0.001,2099.3,2098.3,13.81365388]
[1770438597804,0.001,2099.3,2098.2,1.00320611]
[1770438598390,0.001,2099.3,2098.2,5.06429595]
[1770438598582,0.04623434,2099.7,2098.5,4.06108984]
[1770438598783,1.19062455,2099.8,2098.5,4.06108984]
[1770438598983,0.04623434,2099.8,2098.6,0.0012]
[1770438599395,0.04623434,2099.5,2098.6,0.0012]
[1770438600195,0.04623434,2099.4,2098.6,0.0012]
[1770438600388,4.12859237,2099.1,2098.2,1.19149007]
[1770438600591,0.2335703,2100.0,2098.5,4.06108984]
[1770438600824,1.23654048,2100.3,2098.8,4.06108984]
[1770438601128,1.23654048,2100.3,2098.6,9.75256404]
[1770438601129,0.04623434,2099.7,2098.9,0.0012]
[1770438601428,0.04623434,2099.7,2098.7,0.0012]
[1770438601789,0.04623434,2100.0,2098.7,0.0012]
[1770438602091,0.04623434,2100.0,2098.8,0.0012]
[1770438602288,0.04623434,2099.7,2098.8,0.0012]
[1770438602517,0.04623434,2099.4,2098.8,0.0012]
[1770438603588,1.23705818,2099.4,2098.8,0.0012]
[1770438603837,1.23706221,2099.4,2098.8,0.0012]
[1770438603999,0.60001125,2099.3,2098.8,0.0012]
[1770438604527,0.04623434,2099.1,2098.8,0.0012]
[1770438604693,1.79092377,2099.3,2098.3,1.19144069]
[1770438604890,1.79092377,2099.3,2098.2,4.76576276]
[1770438604891,0.04623434,2099.1,2098.4,0.0012]
[1770438605488,0.04623434,2098.8,2097.6,0.1024]
[1770438605723,0.04623434,2098.8,2098.2,1.19149054]
[1770438605890,0.001,2099.2,2098.2,1.78727232]
[1770438606217,0.04623434,2098.8,2098.3,0.0012]
[1770438606417,0.04623434,2098.8,2098.0,1.19157714]
[1770438606619,1.2374387,2098.8,2098.1,0.0012]
[1770438606819,1.2374387,2098.8,2097.8,0.0012]
[1770438607118,0.04623434,2098.5,2097.8,0.0012]
[1770438607496,4.24267357,2098.5,2097.8,0.0012]
[1770438607696,0.42426736,2098.4,2097.8,0.0012]
[1770438607936,0.04623434,2098.5,2097.8,0.0012]
[1770438608312,5.43387793,2098.8,2097.8,0.0012]
[1770438608692,0.04623434,2098.5,2097.8,0.0012]
[1770438609427,5.43384071,2098.8,2097.8,0.0012]
[1770438609717,1.23724878,2099.1,2097.9,0.0012]
[1770438609922,1.01595415,2099.0,2097.9,0.0012]
[1770438610306,1.23722181,2099.1,2098.0,0.0012]
[1770438610507,0.04623434,2099.1,2098.0,0.0012]
[1770438610704,1.23727308,2099.1,2098.0,1.19281105]
[1770438611203,0.04623434,2098.8,2098.0,1.19281105]
[1770438611399,0.04623434,2098.8,2098.0,0.0012]
[1770438611594,0.04623434,2098.8,2098.0,0.59716928]
[1770438611799,5.39464996,2099.1,2098.0,0.59716928]
[1770438611999,0.04623434,2098.8,2098.0,0.59716928]
[1770438612196,5.39464996,2099.1,2098.0,0.0012]
[1770438613124,0.04623434,2098.8,2098.0,0.0012]
[1770438614205,4.7647827,2099.2,2098.0,9.00377246]
[1770438614206,0.001,2099.2,2098.0,9.00377246]
[1770438614410,1.19193416,2099.2,2098.0,13.02912815]
[1770438614612,1.85210425,2099.2,2098.1,1.30291282]
[1770438614808,0.66117009,2099.2,2098.1,1.30291282]
[1770438615015,1.8521128,2099.2,2098.1,1.30291282]
[1770438615329,0.04623434,2098.8,2098.2,0.0012]
[1770438615504,4.15737688,2099.0,2098.2,0.0012]
[1770438615706,0.04623434,2098.8,2098.2,0.0012]
[1770438615907,4.20361122,2098.8,2098.2,0.0012]
[1770438616106,4.20361122,2098.8,2097.7,1.19285308]
[1770438616107,0.04623434,2098.5,2097.7,1.19285308]
[1770438616328,0.04623434,2098.5,2097.8,1.19169468]
[1770438616498,0.04623434,2098.5,2098.2,0.0011]
[1770438616701,0.04623434,2098.4,2098.2,0.0011]
[1770438616930,4.20361122,2098.8,2098.2,0.0011]
[1770438617126,0.04623434,2098.4,2098.2,0.0011]
[1770438617433,1.23764063,2098.4,2098.2,0.0011]
[1770438617646,0.60029668,2098.3,2098.0,0.0011]
[1770438617805,0.04623434,2098.8,2098.0,0.0011]
[1770438617806,1.23741119,2098.8,2098.0,0.0011]
[1770438618001,1.23741119,2098.8,2098.1,0.0012]
[1770438619544,5.39478807,2098.8,2098.1,0.0012]
[1770438619707,0.04623434,2098.5,2098.1,0.0012]
[1770438620342,1.23741119,2098.8,2098.1,0.0012]
[1770438620525,0.04623434,2099.0,2098.3,9.00257246]
[1770438620711,0.04623434,2099.0,2098.3,0.90025725]
[1770438620912,0.04623434,2099.0,2098.4,0.0012]
[1770438621135,0.04623434,2099.0,2098.0,0.0011]
[1770438621136,0.04623434,2099.0,2098.1,0.0012]
[1770438621422,0.04623434,2099.0,2098.2,0.0012]
[1770438621750,0.04623434,2098.7,2098.1,0.0012]
[1770438622226,0.04623434,2098.4,2098.1,0.0012]
[1770438622537,4.20361122,2098.4,2098.0,0.0011]
[1770438622740,0.42036112,2098.3,2098.0,0.0012]
[1770438622908,0.04623434,2098.4,2098.0,0.0012]
[1770438623935,0.04623434,2098.1,2097.7,0.0011]
[1770438624142,1.19144069,2098.3,2097.8,0.0012]
[1770438624327,0.04623434,2098.1,2097.8,0.0012]
[1770438624526,0.04623434,2098.1,2097.7,0.0011]
[1770438624733,0.04623434,2097.8,2097.3,0.0011]
[1770438624911,0.04623434,2097.7,2097.4,0.0012]
[1770438625518,4.74311641,2098.1,2097.4,0.0012]
[1770438625719,0.04623434,2097.8,2097.4,0.0012]
[1770438626210,1.19162622,2098.0,2097.4,0.0012]
[1770438626413,1.07010038,2097.9,2097.4,0.0012]
[1770438626941,1.07010038,2097.9,2097.3,0.0011]
[1770438626942,4.20361122,2097.8,2097.3,0.0011]
[1770438627106,4.20361122,2097.8,2097.3,0.0023]
[1770438627631,0.04623434,2097.5,2097.3,0.0011]
[1770438627939,4.15737688,2097.5,2097.1,0.0011]
[1770438628116,0.41573769,2097.4,2097.2,0.0012]
[1770438628314,1.1918396,2097.6,2097.2,0.0012]
[1770438628641,1.1918242,2097.7,2097.2,0.0012]
[1770438629048,1.1918242,2097.7,2097.6,0.0011]
[1770438629338,0.04623434,2097.5,2096.9,0.003]
[1770438629540,5.34887435,2098.2,2097.4,0.0011]
[1770438629745,0.04623434,2098.0,2097.4,0.0011]
[1770438630236,1.19166785,2097.9,2097.4,0.0011]
[1770438630442,0.04623434,2098.0,2097.4,0.0011]
[1770438631217,0.04623434,2097.9,2097.4,0.0011]
[1770438631610,0.04623434,2097.6,2097.4,0.0011]
[1770438631809,4.20361122,2097.9,2097.4,0.0011]
[1770438632011,0.42036112,2097.8,2097.4,0.0011]
[1770438632211,1.2381023,2097.6,2097.4,0.0011]
[1770438632667,0.42036112,2097.8,2097.4,0.0011]
[1770438632871,0.04623434,2097.6,2097.4,0.0011]
[1770438633072,1.61211671,2097.8,2097.4,0.0011]
[1770438633274,1.05826266,2097.7,2097.4,0.0011]
[1770438633652,0.04623434,2097.6,2097.4,0.0011]
[1770438633949,1.61211671,2097.8,2097.4,0.0011]
[1770438634152,0.1024,2098.6,2097.4,0.0011]
[1770438634153,1.1914245,2098.4,2097.4,0.0011]
[1770438634372,0.04623434,2098.0,2097.4,0.0011]
[1770438634756,1.19149747,2098.2,2097.4,0.0011]
[1770438634967,0.04623434,2098.0,2097.4,0.0011]
[1770438636269,1.23784993,2098.0,2097.4,0.0011]
[1770438636569,1.79190803,2098.2,2097.4,0.0011]
[1770438636978,0.04623434,2098.0,2097.4,0.0011]
[1770438638354,1.19166785,2097.9,2097.4,0.0011]
[1770438638555,1.79209098,2097.9,2097.4,0.0011]
[1770438638761,0.60042313,2097.9,2097.4,0.0011]
[1770438639166,1.19156761,2098.1,2097.4,0.0011]
[1770438639669,1.79189865,2098.2,2097.4,0.0011]
[1770438640039,0.04623434,2098.1,2097.4,0.0011]
[1770438640481,0.60037217,2098.2,2097.4,0.0011]
[1770438640849,4.81109117,2098.7,2097.4,0.0011]
[1770438640850,1.19127037,2098.6,2097.4,0.0011]
[1770438641050,3.91733284,2098.8,2097.5,12.89930476]
[1770438641051,1.19218378,2098.8,2097.5,12.89930476]
[1770438641261,0.04623434,2098.7,2097.5,12.89930476]
[1770438641462,1.03815333,2098.7,2097.6,1.29004048]
[1770438641674,0.04623434,2098.4,2097.4,0.0011]
[1770438641848,0.001,2097.9,2097.4,0.0011]
[1770438642176,0.04623434,2098.4,2097.4,0.0011]
[1770438643049,1.19130239,2098.6,2097.4,0.0011]
[1770438645582,0.04623434,2098.1,2097.4,0.0011]
[1770438645878,3.91633284,2098.1,2097.4,0.0011]
[1770438646078,0.39163328,2098.0,2097.4,0.0011]
[1770438646282,0.04623434,2098.1,2097.4,0.0011]
[1770438646650,3.96256718,2098.1,2097.4,0.0011]
[1770438646879,3.96256718,2098.4,2097.4,0.0011]
[1770438647578,0.04623434,2097.8,2097.4,0.0011]
[1770438647966,5.15416745,2098.1,2097.4,0.0011]
[1770438648279,0.99202208,2098.0,2097.4,0.0011]
[1770438648680,0.04623434,2097.5,2097.4,0.0011]
[1770438648857,3.96256718,2097.8,2097.4,0.0011]
[1770438649186,0.99202208,2098.0,2097.4,0.0011]
[1770438649355,1.19149182,2098.3,2097.4,0.0011]
[1770438649690,0.04623434,2098.1,2097.4,0.0011]
[1770438649891,5.1539525,2098.4,2097.4,0.0011]
[1770438650353,1.23761966,2098.4,2097.4,0.0011]
[1770438650674,1.03815333,2098.7,2097.4,0.0011]
[1770438650675,1.19130953,2098.6,2097.4,0.0011]
[1770438650846,0.04623434,2098.4,2097.4,0.0011]
[1770438651046,0.04623434,2098.1,2097.4,0.0011]
[1770438651648,0.04623434,2097.8,2097.4,0.0011]
[1770438652755,1.19161105,2098.0,2097.4,0.0011]
[1770438654265,0.001,2097.9,2097.4,0.0011]
[1770438654460,0.04623434,2097.8,2097.4,0.0011]
[1770438655972,0.04623434,2097.5,2097.4,0.0011]
[1770438657480,0.60152896,2097.9,2097.4,0.0011]
[1770438657684,1.19267188,2097.9,2097.4,0.0011]
[1770438658389,0.001,2097.9,2097.4,0.0011]
[1770438659477,0.04623434,2097.8,2097.4,0.0011]
[1770438659678,0.001,2097.9,2097.4,0.0011]
[1770438659990,0.04623434,2097.8,2097.4,0.0011]
[1770438660458,1.19178147,2097.7,2097.4,0.0011]
[1770438660663,0.001,2097.9,2097.4,0.0011]
[1770438661467,1.19268067,2097.9,2097.4,0.0011]
[1770438662584,0.001,2097.9,2097.4,0.0011]
[1770438662788,0.69945118,2098.5,2097.4,0.0011]
[1770438663017,1.23747438,2098.7,2097.5,3.8967323]
[1770438663498,0.04623434,2098.4,2097.5,3.8967323]
[1770438663871,1.23747438,2098.7,2097.5,3.8967323]
[1770438664173,5.15380722,2098.7,2097.4,9.00367246]
[1770438664571,5.15380722,2098.7,2097.5,1.19189511]
[1770438664796,4.76585443,2098.8,2097.7,3.8967323]
[1770438664797,0.001,2098.8,2097.7,3.8967323]
[1770438664967,1.19217098,2098.8,2097.7,3.8967323]
[1770438665900,0.001,2097.9,2097.8,9.00257246]
[1770438666097,0.001,2098.8,2097.9,3.64570851]
[1770438666432,0.001,2099.1,2098.0,1.2648281]
[1770438666566,0.001,2099.1,2098.1,1.19155426]
[1770438667786,0.001,2099.2,2098.3,3.64570851]
[1770438667986,5.03023651,2099.8,2098.6,9.00257246]
[1770438668192,1.01511737,2099.7,2098.7,0.90025725]
[1770438668502,1.23672705,2100.0,2098.7,0.90025725]
[1770438668795,1.19045363,2100.1,2098.8,5.06892504]
[1770438668983,1.19045363,2100.1,2099.0,9.00257246]
[1770438669295,1.19034572,2100.3,2099.1,1.28803406]
[1770438669504,1.19034572,2100.3,2099.1,5.16580225]
[1770438669814,1.2364134,2100.6,2099.4,12.88034065]
[1770438669968,1.19017906,2100.6,2099.5,3.87776819]
[1770438670184,0.59505526,2100.5,2099.6,1.28803406]
[1770438670727,0.001,2100.8,2099.8,9.00257246]
[1770438671087,1.18979083,2101.3,2099.9,3.87776819]
[1770438671308,1.18979083,2101.3,2100.2,9.00257246]
[1770438671514,1.23594416,2101.4,2100.2,9.00257246]
[1770438671715,4.89749098,2101.5,2100.2,9.00257246]
[1770438672016,0.96557782,2101.4,2100.3,0.90025725]
[1770438672320,0.96557782,2101.4,2100.3,4.77802544]
[1770438672619,0.96557782,2101.4,2100.3,3.87776819]
[1770438672802,1.18969213,2101.4,2100.4,1.19024947]
[1770438672997,1.18953055,2101.7,2100.4,1.19024947]
[1770438673319,0.04623434,2101.5,2100.4,1.19024947]
[1770438673695,0.04623434,2101.2,2099.7,3.87776819]
[1770438673896,3.75405973,2101.2,2100.2,1.19036245]
[1770438674096,0.04623434,2100.9,2100.0,1.19043402]
[1770438674298,0.04623434,2101.1,2100.3,1.19029191]
[1770438674503,0.04623434,2100.8,2099.6,1.28803406]
[1770438674702,4.94396929,2101.1,2099.7,1.19064628]
[1770438674904,4.94396929,2101.1,2099.8,1.11190337]
[1770438674905,5.73013825,2101.0,2099.8,1.11190337]
[1770438675113,2.2064752,2101.0,2099.8,1.11190337]
[1770438675897,0.04623434,2100.7,2099.8,1.11190337]
[1770438676093,0.04623434,2100.7,2099.7,1.19064628]
[1770438676290,0.9703313,2101.0,2099.7,14.8021023]
[1770438676497,0.04623434,2101.1,2099.7,10.92433411]
[1770438676813,0.04623434,2101.1,2099.8,3.87776819]
[1770438676999,0.04623434,2101.2,2099.9,1.29293288]
[1770438677328,1.18978596,2101.3,2100.0,3.87776819]
[1770438677531,1.18969449,2101.4,2100.0,3.87776819]
[1770438677726,0.001,2101.0,2100.1,4.3948383]
[1770438677928,1.18955244,2101.7,2100.2,13.71385602]
[1770438678430,1.18955244,2101.7,2100.3,3.87776819]
[1770438678958,1.18955244,2101.7,2100.4,1.19024947]
[1770438679336,0.04723434,2101.8,2100.5,3.87776819]
[1770438679506,2.08794215,2101.8,2100.6,0.50680177]
[1770438680328,2.08794215,2101.8,2100.4,1.19024947]
[1770438680329,0.04623434,2101.5,2100.4,1.19024947]
[1770438680633,5.79576754,2101.8,2100.4,1.19024947]
[1770438680932,5.79576754,2101.8,2100.4,5.06801766]
[1770438681231,0.04623434,2101.5,2100.4,1.19024947]
[1770438681802,3.70782539,2101.7,2100.4,1.19024947]
[1770438682139,0.57957675,2101.6,2100.5,0.59512474]
[1770438682305,2.08794215,2101.8,2100.6,0.01913166]
[1770438682505,2.08799803,2101.8,2100.6,0.01913166]
[1770438682913,2.08799803,2101.8,2100.7,1.19007949]
[1770438683113,5.79582342,2101.8,2100.8,0.01912983]
[1770438684739,0.04623434,2101.5,2100.6,1.19009659]
[1770438685042,4.94373416,2101.5,2100.3,4.7611331]
[1770438685212,1.23590877,2101.5,2100.3,8.63890129]
[1770438685417,1.23590877,2101.5,2100.3,4.7611331]
[1770438685611,0.97020879,2101.4,2100.3,6.86771528]
[1770438685834,0.97020879,2101.4,2100.3,10.74548347]
[1770438686025,0.97020879,2101.4,2100.3,6.86771528]
[1770438687426,0.001,2101.8,2100.7,9.73368783]
[1770438687645,0.001,2101.8,2100.6,3.87776819]
[1770438688572,1.1904795,2101.8,2100.7,9.73368783]
[1770438688860,1.19046185,2101.8,2100.7,9.73368783]
[1770438689149,1.19046185,2101.8,2100.8,1.3611456]
[1770438689327,1.19045669,2101.8,2100.9,1.1899662]
[1770438689528,0.001,2101.8,2100.9,1.1899662]
[1770438690340,0.001,2101.3,2100.9,1.1899662]
[1770438690642,0.001,2101.8,2100.9,1.1899662]
[1770438690843,4.89709074,2102.2,2101.0,9.73368783]
[1770438691414,3.70782539,2102.2,2101.0,9.73368783]
[1770438691660,4.75638402,2102.5,2101.1,1.21912566]
[1770438692538,1.18906064,2102.5,2101.4,9.73368783]
[1770438692839,4.89686802,2102.6,2101.2,3.87776819]
[1770438693040,4.71933239,2102.5,2101.4,9.73368783]
[1770438693346,4.71933239,2102.5,2101.3,0.50676211]
[1770438693527,1.18911719,2102.4,2101.1,1.18985293]
[1770438693732,5.86219152,2102.5,2101.1,1.18985293]
[1770438694121,0.04623434,2102.3,2101.1,1.18985293]
[1770438694336,3.75405973,2102.3,2101.1,1.18985293]
[1770438695350,0.04623434,2102.0,2101.0,1.18989167]
[1770438695549,0.04623434,2102.0,2100.9,4.75985572]
[1770438695550,1.18940006,2101.9,2100.9,4.75985572]
[1770438695734,1.18940006,2101.9,2101.0,0.04759276]
[1770438696351,0.04623434,2101.7,2100.9,1.1899662]
[1770438696553,0.04623434,2101.7,2100.6,9.73368783]
[1770438696728,1.18940006,2101.9,2100.8,1.19001885]
[1770438696922,3.47640452,2101.8,2100.8,1.19001885]
[1770438697672,3.47640452,2101.8,2100.6,1.19009726]
[1770438697673,1.18968306,2101.4,2100.6,1.19009726]
[1770438697960,4.61983484,2101.5,2100.6,1.19009726]
[1770438698179,1.18951325,2101.7,2100.6,1.19009726]
[1770438698329,0.94238807,2101.7,2100.7,0.59518144]
[1770438698522,1.18948406,2101.8,2100.7,0.59518144]
[1770438698828,1.18940921,2101.9,2100.7,4.34381884]
[1770438699250,1.18931559,2102.1,2100.7,4.34381884]
[1770438699729,1.23554993,2102.1,2100.8,4.93866024]
[1770438699948,1.23554993,2102.1,2100.9,0.02925675]
[1770438700149,0.63681035,2102.0,2100.9,1.06157573]
[1770438700634,3.47640452,2101.8,2100.9,0.02925675]
[1770438700956,3.47640452,2101.8,2100.7,1.81449221]
[1770438701131,0.63681035,2102.0,2100.7,1.81449221]
[1770438701331,0.63681035,2102.0,2100.7,5.56312961]
[1770438701774,0.63681035,2102.0,2101.1,1.18985293]
[1770438702076,1.82615674,2102.0,2101.2,1.56829525]
[1770438702230,1.82615674,2102.0,2101.1,0.0011]
[1770438702231,0.04623434,2101.8,2101.1,0.0011]
[1770438702559,3.47740452,2101.8,2101.1,0.0011]
[1770438703270,0.04623434,2101.5,2101.1,0.0011]
[1770438703457,3.47640452,2101.5,2100.5,0.0011]
[1770438703638,0.34764045,2101.4,2100.9,1.18996017]
[1770438704003,4.80343137,2102.1,2100.5,0.0011]
[1770438704004,0.9396327,2104.2,2103.5,2.37616]
[1770438704136,0.9396327,2104.2,2102.5,3.7486374]
[1770438704137,0.93696085,2104.1,2103.7,2.37616]
[1770438704458,3.43017018,2104.2,2103.3,0.1219]
[1770438705237,4.61823513,2104.3,2103.3,0.1219]
[1770438705437,3.47640452,2104.1,2103.5,2.37616]
[1770438705677,1.18805328,2104.3,2103.5,2.37616]
[1770438705977,0.04623434,2104.1,2103.7,2.37616]
[1770438706179,8.22857863,2104.4,2103.8,2.37616]
[1770438706180,4.66441808,2104.4,2103.8,2.37616]
[1770438706460,0.94173664,2104.3,2103.7,2.37616]
[1770438706661,0.04623434,2104.1,2103.3,0.1219]
[1770438707181,0.04623434,2103.8,2103.3,0.1219]
[1770438707464,0.04623434,2103.7,2103.3,0.1219]
[1770438707672,0.04623434,2103.7,2102.4,4.75643495]
[1770438707673,3.47640452,2103.7,2102.4,4.75643495]
[1770438707918,1.53607931,2103.6,2102.4,1.44901228]
[1770438708079,1.18821292,2104.0,2102.7,9.73368783]
[1770438708710,1.18798707,2104.4,2103.4,9.73368783]
[1770438708884,1.23422141,2104.4,2103.4,9.73368783]
[1770438709403,1.23422141,2104.4,2103.0,9.73368783]
[1770438709578,0.94171284,2104.3,2103.1,0.97336878]
[1770438709766,4.66536047,2104.5,2103.2,1.18866489]
[1770438710395,0.001,2104.5,2103.2,1.18866489]
[1770438710595,1.18894648,2104.5,2103.2,1.18866489]
[1770438710775,1.18894549,2104.5,2103.2,1.18866489]
[1770438711106,0.04623434,2104.2,2103.1,1.18869897]
[1770438711704,3.47640452,2104.2,2103.1,1.18869897]
[1770438711909,1.5357969,2104.1,2102.7,4.7557336]
[1770438712209,0.04623434,2103.9,2102.7,4.7557336]
[1770438712384,4.96596708,2104.1,2102.7,4.7557336]
[1770438713005,0.04623434,2103.7,2102.7,1.18894754]
[1770438713178,3.43017018,2103.7,2102.7,1.18894754]
[1770438713379,0.34301702,2103.6,2102.7,1.18894754]
[1770438714318,0.001,2104.5,2103.9,1.34868049]
[1770438714608,3.43017018,2105.6,2102.5,12.37176122]